bitfinex/quotes_SOLUSD_20251103
["timestamp","ask_amount","ask_price","bid_price","bid_amount"]
[1762178820317,0.1,176.97,176.96,12.77811752]
[1762178821460,0.1,176.97,176.94,5.65139396]
[1762178821743,0.1,176.97,176.93,19.78183461]
[1762178822634,7.22712295,176.97,176.93,5.65195274]
[1762178822852,0.1,176.97,176.93,12.77907569]
[1762178823047,0.1,176.97,176.95,7.12712295]
[1762178823216,0.1,176.97,176.96,7.12712295]
[1762178823754,1e-08,176.97,176.96,9.93098926]
[1762178823950,1e-08,176.97,176.96,23.27420623]
[1762178824440,1e-08,176.97,176.96,15.43982226]
[1762178824639,1e-08,176.97,176.96,12.77811752]
[1762178824848,1e-08,176.97,176.96,5.65099457]
[1762178825017,1e-08,176.97,176.96,23.13204466]
[1762178825212,1e-08,176.97,176.96,15.43982226]
[1762178825523,1e-08,176.97,176.96,23.27420623]
[1762178825721,1e-08,176.97,176.96,22.70910678]
[1762178826616,1e-08,176.97,176.96,12.77811752]
[1762178827030,1e-08,176.97,176.96,22.56694521]
[1762178827239,1e-08,176.97,176.96,23.27420623]
[1762178827434,1e-08,176.97,176.96,43.86620623]
[1762178827632,1e-08,176.97,176.96,23.27420623]
[1762178828140,1e-08,176.97,176.96,43.86620623]
[1762178828319,1e-08,176.97,176.96,23.27420623]
[1762178828919,1e-08,177.01,176.96,86.24866553]
[1762178829227,1e-08,177.01,177.0,37.65011221]
[1762178829434,1e-08,177.01,177.0,38.21508396]
[1762178829635,1e-08,177.01,177.0,45.34220691]
[1762178829825,1e-08,177.01,177.0,50.99192442]
[1762178830225,3.75567041,177.14,177.01,0.14216157]
[1762178830528,7.22712295,177.15,177.09,7.12712295]
[1762178830855,7.12712295,177.14,177.06,20.592]
[1762178831053,3.75567041,177.14,177.09,7.12712295]
[1762178831357,7.12712295,177.12,177.06,20.592]
[1762178831664,0.1,177.15,177.03,9.78882769]
[1762178831665,7.12712295,177.1,177.04,20.592]
[1762178831881,5.64663985,177.1,177.0,19.77401129]
[1762178832177,7.12712295,177.08,177.02,7.12712295]
[1762178832673,7.12712295,177.08,177.0,19.77401129]
[1762178832959,7.12712295,177.08,177.02,7.12712295]
[1762178833255,3.76319128,177.11,177.06,7.12712295]
[1762178833437,3.76319128,177.11,177.07,7.12712295]
[1762178833649,3.76319128,177.12,177.08,7.12712295]
[1762178833833,3.76319128,177.14,177.09,7.12712295]
[1762178834039,3.76319128,177.13,177.1,5.64652738]
[1762178834243,3.76319128,177.14,177.1,5.64652738]
[1762178834450,3.76319128,177.13,177.1,5.64652738]
[1762178834662,7.12712295,177.13,177.09,5.64682179]
[1762178834838,10.89031423,177.13,177.09,5.64682179]
[1762178835034,7.12712295,177.1,177.04,12.77556398]
[1762178835744,3.76985172,177.09,177.04,5.64844103]
[1762178835954,3.76985172,177.08,177.04,12.77556398]
[1762178836147,7.12712295,177.09,177.04,5.64844103]
[1762178836348,10.9006372,177.08,177.04,5.64844103]
[1762178836555,3.77351425,177.07,177.01,5.64939833]
[1762178836861,3.77351425,177.06,177.03,7.12712295]
[1762178837150,7.12712295,177.08,177.02,7.12712295]
[1762178837354,3.7764697,177.07,177.04,7.12712295]
[1762178837544,3.7764697,177.06,177.01,19.77289417]
[1762178837741,7.12712295,177.09,177.01,19.77289417]
[1762178837948,10.90343106,177.08,177.02,12.77600187]
[1762178838154,3.77630811,177.07,177.02,5.64887892]
[1762178838348,3.77630811,177.06,177.02,19.77157692]
[1762178838653,11.82505215,177.12,177.05,7.12712295]
[1762178838844,15.10014114,177.11,177.05,7.12712295]
[1762178839039,3.777033,177.1,177.05,7.12712295]
[1762178839255,3.777033,177.09,177.05,7.12712295]
[1762178839452,3.777033,177.08,177.05,7.12712295]
[1762178839645,7.12712295,177.11,177.05,7.12712295]
[1762178839844,3.77737037,177.1,177.02,19.77157692]
[1762178840041,3.77737037,177.09,177.05,7.12712295]
[1762178840241,3.77737037,177.08,177.05,7.12712295]
[1762178840448,3.77737037,177.07,177.05,7.12712295]
[1762178840645,11.82505215,177.12,177.06,7.12712295]
[1762178840850,11.82505215,177.12,177.07,7.12712295]
[1762178840851,7.97509859,177.11,177.07,7.12712295]
[1762178841158,3.77800501,177.1,177.07,7.12712295]
[1762178841460,3.77800501,177.09,177.04,40.9263877]
[1762178841633,4.6979292,177.13,177.08,7.12712295]
[1762178841840,3.77797627,177.12,177.1,7.12712295]
[1762178842158,3.77797627,177.11,177.1,5.64652738]
[1762178843660,3.77797627,177.11,177.1,12.77365033]
[1762178843861,0.1,177.15,177.1,26.88996879]
[1762178844062,3.77766025,177.14,177.12,7.12712295]
[1762178844360,3.77766025,177.13,177.1,19.76284584]
[1762178844565,0.1,177.15,177.1,5.64652738]
[1762178844866,3.77742864,177.14,177.09,5.6467828]
[1762178845076,3.77742864,177.13,177.09,5.6467828]
[1762178845369,3.77742864,177.12,177.11,7.12712295]
[1762178845564,3.77742864,177.12,177.09,19.76389839]
[1762178845772,0.1,177.15,177.11,7.12712295]
[1762178845942,3.77699855,177.14,177.11,5.64608942]
[1762178846258,3.77699855,177.13,177.11,12.77321237]
[1762178846445,0.1,177.15,177.11,5.64608942]
[1762178846646,3.77611011,177.14,177.11,5.64608942]
[1762178846854,3.77611011,177.13,177.11,5.64608942]
[1762178847161,0.1,177.15,177.11,19.76161084]
[1762178847367,0.1,177.15,177.12,7.12712295]
[1762178847661,0.1,177.15,177.11,26.88873379]
[1762178847662,3.77575928,177.14,177.11,26.88873379]
[1762178847961,0.1,177.15,177.11,26.88873379]
[1762178848147,0.1,177.15,177.12,7.12712295]
[1762178848353,0.1,177.15,177.13,7.12712295]
[1762178848554,0.1,177.15,177.14,7.12712295]
[1762178848754,0.1,177.15,177.11,19.76161084]
[1762178848949,0.1,177.15,177.13,7.12712295]
[1762178849356,0.1,177.15,177.11,26.88873379]
[1762178849555,0.1,177.15,177.11,19.76161084]
[1762178849952,7.12712295,177.14,177.09,5.64684623]
[1762178850270,0.1,177.15,177.09,19.76396182]
[1762178850471,0.1,177.15,177.1,7.12712295]
[1762178851470,0.1,177.15,177.09,19.76396182]
[1762178851656,0.1,177.15,177.11,7.12712295]
[1762178851966,0.1,177.15,177.11,5.64620857]
[1762178852481,0.1,177.15,177.14,7.12712295]
[1762178853161,0.1,177.15,177.11,19.76172999]
[1762178853562,0.1,177.15,177.14,7.12712295]
[1762178853961,0.1,177.15,177.14,12.77237529]
[1762178854157,0.1,177.15,177.14,5.64525234]
[1762178854367,0.1,177.15,177.14,12.77237529]
[1762178858473,3.770354,177.25,177.17,20.592]
[1762178858770,7.12712295,177.26,177.21,7.12712295]
[1762178858986,3.770354,177.25,177.21,7.12712295]
[1762178859169,7.12712295,177.24,177.17,20.592]
[1762178859375,7.12712295,177.2,177.14,19.75838319]
[1762178859553,53.770354,177.26,177.15,7.12712295]
[1762178859554,7.12712295,177.21,177.15,7.12712295]
[1762178859755,7.12712295,177.21,177.16,7.12712295]
[1762178859960,7.12712295,177.2,177.14,20.592]
[1762178860178,3.770354,177.22,177.13,7.12712295]
[1762178860405,7.12712295,177.18,177.12,7.12712295]
[1762178860569,3.770354,177.2,177.12,7.12712295]
[1762178860886,7.12712295,177.18,177.12,7.12712295]
[1762178861267,7.12712295,177.17,177.13,5.64557104]
[1762178861571,3.77335983,177.16,177.09,5.64684623]
[1762178861777,7.12712295,177.16,177.1,7.12712295]
[1762178861974,3.7749789,177.18,177.13,7.12712295]
[1762178862681,3.7749789,177.18,177.14,7.12712295]
[1762178862864,10.3403148,177.23,177.15,7.12712295]
[1762178863187,7.12712295,177.2,177.16,5.64461503]
[1762178863489,3.77553382,177.19,177.16,5.64461503]
[1762178863691,10.90265677,177.19,177.16,5.64461503]
[1762178863987,7.12712295,177.19,177.14,19.75766469]
[1762178864197,7.12712295,177.19,177.14,5.64496697]
[1762178864364,5.64271376,177.22,177.14,12.77208992]
[1762178864558,7.97536926,177.21,177.14,5.64496697]
[1762178864863,7.12712295,177.19,177.14,12.77208992]
[1762178865077,7.12712295,177.2,177.14,12.77208992]
[1762178865266,3.77775507,177.19,177.14,26.88522077]
[1762178865897,3.77775507,177.19,177.17,7.12712295]
[1762178866183,7.12712295,177.22,177.16,7.12712295]
[1762178866184,3.77775507,177.21,177.16,7.12712295]
[1762178866483,10.90487802,177.2,177.15,7.12712295]
[1762178866684,3.77883195,177.19,177.14,5.64496697]
[1762178866863,7.12712295,177.19,177.14,5.64496697]
[1762178867065,7.12712295,177.2,177.14,12.77208992]
[1762178867387,7.12712295,177.15,177.11,5.64620857]
[1762178868154,5.64368954,177.19,177.11,5.64620857]
[1762178868386,7.12712295,177.16,177.11,12.77333152]
[1762178868697,7.12712295,177.12,177.04,28.24145826]
[1762178868896,3.78403648,177.14,177.02,9.78882769]
[1762178869182,7.12712295,177.1,177.05,7.12712295]
[1762178869372,7.12712295,177.11,177.06,12.77492595]
[1762178869570,10.91302942,177.1,177.06,5.647803]
[1762178869882,25.2899292,177.15,177.03,7.12712295]
[1762178869883,39.40294627,177.15,177.03,7.12712295]
[1762178870084,7.12712295,177.09,177.04,7.12712295]
[1762178870471,7.12712295,177.1,177.04,7.12712295]
[1762178871090,7.12712295,177.1,177.05,7.12712295]
[1762178871287,30.93487482,177.15,177.07,5.64748404]
[1762178871288,5.6453876,177.14,177.07,5.64748404]
[1762178871466,10.91514015,177.13,177.07,19.76619415]
[1762178871673,3.7880172,177.12,177.07,26.8933171]
[1762178871869,7.12712295,177.13,177.07,26.8933171]
[1762178872589,4.79810072,177.13,177.07,24.56429487]
[1762178872776,4.6979292,177.18,177.09,4.79810072]
[1762178873091,4.6979292,177.18,177.07,19.76619415]
[1762178873092,7.9992525,177.17,177.13,4.79810072]
[1762178873263,4.6979292,177.2,177.13,4.79810072]
[1762178873264,3.78895613,177.16,177.14,5.64525234]
[1762178873457,4.79810072,177.19,177.14,5.64525234]
[1762178873662,8.00095881,177.18,177.15,4.79810072]
[1762178873964,3.78975289,177.17,177.15,4.79810072]
[1762178874160,76.95932697,177.24,177.14,19.75838319]
[1762178874161,4.6979292,177.22,177.16,4.79810072]
[1762178874367,8.00124249,177.21,177.16,4.79810072]
[1762178874576,8.00124249,177.2,177.16,4.79810072]
[1762178874770,8.00124249,177.19,177.16,4.79810072]
[1762178874971,3.7898977,177.18,177.16,4.79810072]
[1762178875172,4.79810072,177.2,177.15,4.79810072]
[1762178875390,8.00138194,177.19,177.15,4.79810072]
[1762178875564,4.79810072,177.2,177.15,10.44302652]
[1762178875763,4.79810072,177.2,177.1,30.52298926]
[1762178875969,12.79898973,177.19,177.13,4.79810072]
[1762178876184,4.79810072,177.22,177.17,4.79810072]
[1762178876391,8.00118337,177.21,177.17,4.79810072]
[1762178876695,14.10489445,177.25,177.11,20.32635084]
[1762178876696,4.6979292,177.25,177.18,4.79810072]
[1762178876990,4.79810072,177.23,177.18,4.79810072]
[1762178877184,8.00023608,177.22,177.17,4.79810072]
[1762178877500,8.58753182,177.21,177.16,4.79810072]
[1762178877682,4.79810072,177.22,177.17,4.79810072]
[1762178877892,3.78993059,177.21,177.16,10.4425773]
[1762178878107,4.79810072,177.22,177.16,10.4425773]
[1762178878395,4.79810072,177.22,177.16,5.64447658]
[1762178878396,3.79023794,177.21,177.16,5.64447658]
[1762178878600,4.79810072,177.22,177.16,10.4425773]
[1762178878910,8.00211028,177.21,177.16,10.4425773]
[1762178879202,4.79810072,177.22,177.16,10.4425773]
[1762178879409,3.79039719,177.21,177.16,10.4425773]
[1762178879586,5.64287964,177.22,177.17,4.79810072]
[1762178879768,3.7903958,177.21,177.17,4.79810072]
[1762178879969,5.64287964,177.22,177.17,4.79810072]
[1762178880194,3.7903958,177.21,177.17,4.79810072]
[1762178880412,5.64287964,177.22,177.17,4.79810072]
[1762178880591,8.00261957,177.21,177.17,10.44238189]
[1762178880879,4.79810072,177.18,177.09,0.14216157]
[1762178881089,4.79810072,177.18,177.08,0.56471651]
[1762178881090,4.79810072,177.15,177.1,4.79810072]
[1762178881293,4.79810072,177.13,177.08,5.64716512]
[1762178881493,4.79810072,177.13,177.03,132.24302602]
[1762178881494,4.79810072,177.13,177.07,10.44550712]
[1762178881897,4.79810072,177.12,177.06,4.79810072]
[1762178882084,4.79810072,177.11,177.03,14.121773]
[1762178882278,4.79810072,177.1,177.05,4.79810072]
[1762178882478,4.79810072,177.11,177.06,5.647803]
[1762178882686,9.43891461,177.13,177.06,10.44590372]
[1762178882886,4.79810072,177.14,177.08,4.79810072]
[1762178883075,8.01038393,177.13,177.09,4.79810072]
[1762178883292,32.0,177.16,177.12,4.79810072]
[1762178883483,5.6433729,177.2,177.13,4.79810072]
[1762178883678,12.80887241,177.19,177.13,4.79810072]
[1762178883985,8.01077169,177.18,177.09,20.592]
[1762178884176,8.01077169,177.17,177.09,25.39010072]
[1762178884509,105.64335786,177.2,177.06,19.76731051]
[1762178884510,8.01077169,177.16,177.11,4.79810072]
[1762178884687,3.79456007,177.15,177.11,4.79810072]
[1762178885003,4.79810072,177.15,177.09,4.79810072]
[1762178885201,4.79810072,177.12,177.07,4.79810072]
[1762178885573,4.79810072,177.11,177.05,10.44622271]
[1762178885901,4.79810072,177.14,177.08,4.79810072]
[1762178886074,4.79810072,177.15,177.09,4.79810072]
[1762178886406,12.81430673,177.14,177.08,10.44497329]
[1762178886612,4.79810072,177.12,177.05,14.12030499]
[1762178886898,4.79810072,177.13,177.07,4.79810072]
[1762178887105,8.59585957,177.12,177.07,4.79810072]
[1762178887267,3.79775885,177.11,177.06,24.56541123]
[1762178887468,4.79810072,177.12,177.06,19.76731051]
[1762178887667,8.5959592,177.11,177.06,5.647803]
[1762178887871,4.79810072,177.11,177.05,10.44614711]
[1762178888096,4.79810072,177.1,177.05,5.64804639]
[1762178888394,4.79810072,177.1,177.05,10.44614711]
[1762178888597,4.79810072,177.1,177.05,5.64804639]
[1762178888799,4.79810072,177.1,177.05,10.44614711]
[1762178888990,4.79810072,177.11,177.05,10.44614711]
[1762178889191,3.79813927,177.1,177.05,10.44614711]
[1762178889396,4.79810072,177.11,177.05,10.44614711]
[1762178889574,3.79726083,177.1,177.05,10.44614711]
[1762178889776,4.79810072,177.11,177.05,10.44614711]
[1762178889984,13.66313654,177.1,177.02,5.64876433]
[1762178890298,4.79810072,177.08,177.02,10.44686505]
[1762178890790,10.34406683,177.12,177.03,4.79810072]
[1762178891002,4.79810072,177.07,177.02,5.64876433]
[1762178891207,4.79810072,177.03,176.94,28.25761853]
[1762178891369,3.79680691,177.05,176.98,20.592]
[1762178891570,4.79810072,177.04,176.95,19.77959875]
[1762178891796,4.79810072,177.04,176.99,4.79810072]
[1762178892009,3.79428114,177.08,177.02,4.79810072]
[1762178892185,8.59238186,177.07,177.01,4.79810072]
[1762178892385,4.79810072,177.08,177.03,4.79810072]
[1762178892586,4.79810072,177.09,177.03,4.79810072]
[1762178892782,3.79230567,177.08,177.03,4.79810072]
[1762178893200,3.79230567,177.08,177.0,19.77401129]
[1762178893393,4.79810072,177.07,177.01,4.79810072]
[1762178893585,4.79810072,177.07,177.0,19.77401129]
[1762178893802,4.79810072,177.06,177.01,4.79810072]
[1762178893986,4.79810072,177.06,177.02,5.6490792]
[1762178894190,4.79810072,177.06,177.0,4.79810072]
[1762178894509,53.79230567,177.1,176.99,10.44813744]
[1762178894675,4.79810072,177.07,177.01,4.79810072]
[1762178894878,3.79230567,177.08,177.04,4.79810072]
[1762178895076,3.79230567,177.08,176.99,19.77512853]
[1762178895077,8.58764789,177.11,177.05,4.79810072]
[1762178895291,7.99989612,177.1,177.05,4.79810072]
[1762178895470,8.58764789,177.1,177.02,20.592]
[1762178895677,7.99970678,177.09,176.97,5.65067525]
[1762178895877,7.99970678,177.09,176.96,19.44534036]
[1762178895878,20.592,177.05,176.96,5.65099457]
[1762178896195,20.592,177.05,176.95,22.63259912]
[1762178896196,4.79810072,176.98,176.95,22.63259912]
[1762178896395,4.79810072,176.98,176.95,22.63248345]
[1762178896603,4.79810072,176.98,176.95,16.98129227]
[1762178896783,4.79810072,176.97,176.88,28.2672889]
[1762178896981,4.79810072,176.98,176.92,25.39010072]
[1762178897183,4.79810072,176.97,176.89,19.78630787]
[1762178897381,4.79810072,176.96,176.9,4.79810072]
[1762178897591,3.78954717,177.01,176.91,4.79810072]
[1762178897791,50.0,177.03,176.91,4.79810072]
[1762178897792,4.79810072,176.96,176.91,4.79810072]
[1762178897992,4.79810072,176.95,176.89,19.78630787]
[1762178898199,4.79810072,176.95,176.81,0.2]
[1762178898200,4.79810072,176.92,176.82,0.56554688]
[1762178898398,4.79810072,176.91,176.85,14.1361901]
[1762178898579,3.78954717,176.98,176.9,4.79810072]
[1762178898900,4.79810072,176.95,176.89,4.79810072]
[1762178899085,4.79810072,176.93,176.88,4.79810072]
[1762178900087,4.79810072,176.94,176.89,5.65323082]
[1762178900302,4.79810072,176.93,176.89,5.65323082]
[1762178900694,4.79810072,176.92,176.86,19.78888113]
[1762178900894,4.79810072,176.92,176.86,24.58698185]
[1762178901096,4.79810072,176.96,176.9,20.592]
[1762178901282,4.79810072,176.96,176.9,25.39010072]
[1762178901782,4.79810072,176.94,176.88,4.79810072]
[1762178901984,4.79810072,176.95,176.9,4.79810072]
[1762178902993,4.79810072,176.95,176.86,19.78888113]
[1762178903281,4.79810072,176.91,176.86,5.65418975]
[1762178903494,4.79810072,176.91,176.86,19.78966413]
[1762178903994,4.79810072,176.92,176.86,24.58776485]
[1762178904383,3.76938488,176.97,176.87,4.79810072]
[1762178904384,4.79810072,176.93,176.87,4.79810072]
[1762178904582,4.79810072,176.92,176.86,24.58776485]
[1762178904825,3.76938488,176.97,176.86,19.78966413]
[1762178905018,4.79810072,176.94,176.86,19.78966413]
[1762178905185,4.79810072,176.95,176.9,4.79810072]
[1762178905887,4.79810072,176.96,176.91,4.79810072]
[1762178906083,4.79810072,176.96,176.86,48.0606129]
[1762178906084,4.79810072,176.95,176.86,48.0606129]
[1762178906290,4.79810072,176.93,176.87,4.79810072]
[1762178906628,4.79810072,176.93,176.88,4.79810072]
[1762178906801,4.79810072,176.94,176.88,4.79810072]
[1762178907313,4.79810072,176.95,176.89,4.79810072]
[1762178907521,4.79810072,176.97,176.91,4.79810072]
[1762178907728,4.79810072,176.98,176.92,4.79810072]
[1762178908017,4.79810072,176.95,176.9,4.79810072]
[1762178908388,4.79810072,176.95,176.86,19.78966413]
[1762178908588,4.79810072,176.93,176.86,19.78966413]
[1762178908895,4.79810072,176.93,176.87,4.79810072]
[1762178909295,4.79810072,176.92,176.87,4.79810072]
[1762178909609,4.79810072,176.92,176.86,24.58776485]
[1762178909811,4.79810072,176.92,176.87,4.79810072]
[1762178910007,4.79810072,176.9,176.86,5.65418975]
[1762178910312,4.79810072,176.92,176.86,10.45229047]
[1762178910510,4.79810072,176.92,176.87,4.79810072]
[1762178911014,4.79810072,176.93,176.87,4.79810072]
[1762178911202,4.79810072,176.91,176.86,24.58776485]
[1762178911399,4.79810072,176.9,176.86,5.65418975]
[1762178912818,4.79810072,176.89,176.85,5.65450947]
[1762178913011,4.79810072,176.88,176.85,5.65450947]
[1762178913314,4.79810072,176.89,176.85,5.65450947]
[1762178913609,4.79810072,176.87,176.84,5.65476573]
[1762178913826,4.79810072,176.87,176.83,0.2]
[1762178913827,4.79810072,176.87,176.83,5.8550789]
[1762178914011,4.79810072,176.89,176.83,10.65317962]
[1762178914192,4.79810072,176.89,176.84,4.79810072]
[1762178914817,4.79810072,176.89,176.84,10.45289669]
[1762178915016,4.79810072,176.9,176.84,24.58996975]
[1762178915611,4.79810072,176.88,176.83,10.65323073]
[1762178915819,4.79810072,176.88,176.83,5.85513001]
[1762178916008,4.79810072,176.89,176.83,24.79110326]
[1762178916609,3.76418366,176.93,176.84,4.79810072]
[1762178916910,3.76418366,176.93,176.83,19.99300254]
[1762178916911,4.79810072,176.89,176.83,24.79110326]
[1762178917213,80.38082769,176.95,176.88,4.79810072]
[1762178917214,4.79810072,176.93,176.88,4.79810072]
[1762178917515,4.79810072,176.93,176.87,4.79810072]
[1762178917703,4.79810072,176.93,176.83,48.2687476]
[1762178917892,4.79810072,176.92,176.87,4.79810072]
[1762178918313,4.79810072,176.93,176.87,4.79810072]
[1762178918513,4.79810072,176.92,176.87,4.79810072]
[1762178918816,4.79810072,176.92,176.88,5.65355042]
[1762178919122,4.79810072,176.89,176.83,4.99810072]
[1762178919310,4.79810072,176.88,176.84,5.65482922]
[1762178919689,4.79810072,176.88,176.84,19.79190228]
[1762178919895,4.79810072,176.89,176.84,19.79190228]
[1762178920599,4.79810072,176.89,176.84,24.590003]
[1762178920802,4.79810072,176.89,176.84,19.79190228]
[1762178920992,4.79810072,176.89,176.84,24.590003]
[1762178921598,4.79810072,176.89,176.84,19.79190228]
[1762178921824,4.79810072,176.89,176.84,24.590003]
[1762178922118,20.592,176.95,176.87,4.79810072]
[1762178922415,4.79810072,176.92,176.87,4.79810072]
[1762178922718,8.55676272,176.93,176.87,4.79810072]
[1762178923012,4.79810072,176.91,176.86,4.79810072]
[1762178923616,4.79810072,176.91,176.87,5.65387007]
[1762178923802,3.76136496,176.94,176.87,10.45197079]
[1762178924001,3.76136496,176.94,176.88,4.79810072]
[1762178924002,3.76136496,176.93,176.88,4.79810072]
[1762178924316,4.79810072,176.94,176.88,4.79810072]
[1762178924621,3.76446104,176.93,176.87,45.17864597]
[1762178924922,3.76446104,176.92,176.87,45.17864597]
[1762178925101,4.79810072,176.93,176.87,45.17864597]
[1762178925437,3.76453219,176.92,176.87,40.38054525]
[1762178925722,4.79810072,176.93,176.87,45.17864597]
[1762178925928,3.76492652,176.92,176.87,45.17864597]
[1762178926213,4.79810072,176.92,176.87,40.38054525]
[1762178926620,4.79810072,176.93,176.87,45.17864597]
[1762178927207,4.79810072,176.92,176.87,45.17864597]
[1762178927615,4.79810072,176.92,176.87,40.38054525]
[1762178927802,4.79810072,176.91,176.84,19.79190228]
[1762178928004,4.79810072,176.92,176.86,4.79810072]
[1762178929120,3.76988044,176.91,176.87,5.65387007]
[1762178929311,4.79810072,176.92,176.87,5.65387007]
[1762178929511,3.77296322,176.91,176.87,5.65387007]
[1762178929811,4.79810072,176.92,176.87,19.78854525]
[1762178930010,46.50055879,176.95,176.89,4.79810072]
[1762178930011,36.79810072,176.95,176.89,4.79810072]
[1762178930314,3.77250985,176.94,176.89,4.79810072]
[1762178930517,3.77250985,176.93,176.89,4.79810072]
[1762178930722,3.77250985,176.92,176.87,45.17864597]
[1762178930913,3.77250985,176.92,176.87,40.38054525]
[1762178930914,4.79810072,176.92,176.87,40.38054525]
[1762178931225,3.7786443,176.91,176.87,45.17864597]
[1762178931401,4.79810072,176.94,176.88,4.79810072]
[1762178931601,3.77864221,176.93,176.88,4.79810072]
[1762178931812,3.77864221,176.92,176.88,4.79810072]
[1762178932022,3.77860059,176.91,176.87,40.38054525]
[1762178932221,4.79810072,176.94,176.88,4.79810072]
[1762178932424,3.78127867,176.93,176.88,4.79810072]
[1762178932619,3.78127867,176.92,176.88,4.79810072]
[1762178932823,3.78127867,176.91,176.87,45.17864597]
[1762178933126,4.79810072,176.93,176.87,45.17864597]
[1762178933314,3.78442212,176.92,176.87,45.17864597]
[1762178933509,3.78442212,176.91,176.87,45.17864597]
[1762178933842,4.79810072,176.94,176.88,4.79810072]
[1762178934127,3.78442073,176.93,176.89,4.79810072]
[1762178934324,3.78442073,176.92,176.89,7.13254166]
[1762178934504,3.78442073,176.91,176.89,7.13254166]
[1762178934710,7.13254166,176.94,176.88,7.13254166]
[1762178934931,10.91973687,176.93,176.87,47.51308691]
[1762178935129,7.13254166,176.91,176.87,5.65387007]
[1762178935438,3.78719521,176.9,176.86,5.65418975]
[1762178935642,3.78719521,176.89,176.86,19.78966413]
[1762178935931,4.7117311,176.93,176.86,26.92220579]
[1762178936126,10.9223906,176.92,176.86,26.92220579]
[1762178936340,3.78984894,176.91,176.87,7.13254166]
[1762178936628,3.78984894,176.9,176.87,7.13254166]
[1762178936938,11.84427276,176.95,176.89,7.13254166]
[1762178937224,15.13655878,176.94,176.89,5.65323082]
[1762178937430,8.00651924,176.93,176.89,5.65323082]
[1762178937730,3.79095496,176.92,176.89,19.78630787]
[1762178937924,3.79095496,176.91,176.89,19.78630787]
[1762178938103,3.79095496,176.9,176.89,19.78630787]
[1762178938611,3.79095496,176.9,176.89,26.91884953]
[1762178938936,3.79095496,176.9,176.89,19.78630787]
[1762178939430,8.01419747,176.9,176.88,5.65355042]
[1762178939635,3.79095496,176.89,176.86,5.65418975]
[1762178939819,3.79095496,176.88,176.86,5.65418975]
[1762178940127,11.84427276,176.94,176.87,7.13254166]
[1762178940329,4.22871046,176.93,176.89,7.13254166]
[1762178940630,4.22871046,176.92,176.87,7.13254166]
[1762178940817,4.22871046,176.91,176.88,7.13254166]
[1762178941012,7.13254166,176.94,176.88,7.13254166]
[1762178941242,4.22842462,176.93,176.88,7.13254166]
[1762178941412,4.22842462,176.92,176.89,5.65323082]
[1762178941613,4.22842462,176.91,176.89,5.65323082]
[1762178941921,4.22842462,176.9,176.89,5.65323082]
[1762178942223,4.22842462,176.9,176.88,5.65350972]
[1762178942530,4.22842462,176.89,176.88,5.65350972]
[1762178943445,4.22842462,176.89,176.87,14.1345223]
[1762178943638,7.13254166,176.92,176.87,14.1345223]
[1762178943949,4.23293367,176.91,176.87,14.1345223]
[1762178944152,4.7117311,176.95,176.89,7.13254166]
[1762178944320,4.23269731,176.94,176.9,7.13254166]
[1762178944523,4.23269731,176.93,176.9,7.13254166]
[1762178944824,4.23269731,176.92,176.87,14.1345223]
[1762178945163,7.13254166,176.9,176.86,5.65418975]
[1762178945449,7.13254166,176.87,176.83,5.855135]
[1762178945615,4.23269731,176.86,176.83,19.99300753]
[1762178945812,4.23269731,176.85,176.83,19.99300753]
[1762178946008,4.23269731,176.84,176.83,19.99300753]
[1762178946239,4.23515159,176.84,176.83,5.855135]
[1762178946433,7.13254166,176.86,176.83,5.855135]
[1762178946644,4.23356028,176.85,176.83,5.855135]
[1762178946847,7.13254166,176.86,176.83,19.99300753]
[1762178947014,7.13254166,176.87,176.83,19.99300753]
[1762178947210,4.23344099,176.86,176.83,19.99300753]
[1762178947443,7.13254166,176.87,176.83,19.99300753]
[1762178947623,4.2325394,176.86,176.83,19.99300753]
[1762178947815,7.13254166,176.87,176.83,19.99300753]
[1762178948141,4.23253862,176.86,176.83,19.99300753]
[1762178948329,7.13254166,176.87,176.83,19.99300753]
[1762178948530,7.13254166,176.85,176.83,0.2]
[1762178948721,7.13254166,176.85,176.83,5.85514901]
[1762178948921,14.50055879,176.92,176.83,19.99302154]
[1762178949142,7.13254166,176.88,176.83,19.99302154]
[1762178949335,11.36415776,176.87,176.83,19.99302154]
[1762178949644,4.2316161,176.86,176.83,19.99302154]
[1762178949828,7.13254166,176.87,176.83,19.99302154]
[1762178950019,4.23100754,176.86,176.83,19.99302154]
[1762178950225,7.13254166,176.88,176.83,19.99302154]
[1762178950424,4.23062309,176.87,176.83,19.99302154]
[1762178950722,7.13254166,176.88,176.83,27.1255632]
[1762178950929,4.23058149,176.87,176.83,27.1255632]
[1762178951126,7.13254166,176.89,176.83,27.1255632]
[1762178951322,4.23118045,176.88,176.83,27.1255632]
[1762178951538,4.23118045,176.87,176.85,5.65450947]
[1762178951740,7.13254166,176.88,176.85,5.65450947]
[1762178951939,4.23074546,176.87,176.85,5.65450947]
[1762178952146,3.80774063,176.86,176.85,5.65450947]
[1762178952350,3.80774063,176.86,176.83,5.8548741]
[1762178952536,15.17113731,176.85,176.83,5.8548741]